bitfinex-derivatives/quotes_ETHF0:USTF0_20260116
["timestamp","ask_amount","ask_price","bid_price","bid_amount"]
[1768570206602,0.64894096,3310.1,3308.7,40.8]
[1768570208695,0.64894096,3310.1,3308.7,40.95116]
[1768570212092,0.64894096,3309.9,3308.7,40.95116]
[1768570227816,0.70498112,3310.3,3308.8,0.15116]
[1768570228110,0.955326,3310.2,3308.8,0.15116]
[1768570228311,0.955326,3310.1,3308.8,0.15116]
[1768570228511,0.955326,3310.0,3308.8,0.15116]
[1768570228811,0.70498112,3310.3,3308.8,0.15116]
[1768570229012,0.95540366,3310.2,3308.8,0.15116]
[1768570229205,0.95540366,3310.1,3308.8,0.15116]
[1768570229407,0.95540366,3310.0,3308.8,0.15116]
[1768570229616,0.70498112,3310.3,3308.8,0.15116]
[1768570229918,0.95547736,3310.2,3308.8,0.15116]
[1768570230107,0.95547736,3310.1,3308.9,0.15115]
[1768570230306,0.70498112,3310.3,3308.9,0.15115]
[1768570230509,0.95553061,3310.2,3308.9,0.15115]
[1768570230709,0.95553061,3310.1,3308.9,0.15115]
[1768570231006,0.70498112,3310.3,3308.9,0.15115]
[1768570231206,0.95554408,3310.2,3308.9,0.15115]
[1768570231406,0.95554408,3310.1,3308.9,0.15115]
[1768570231614,0.95554408,3310.0,3308.9,0.15115]
[1768570231817,0.70498112,3310.3,3308.9,0.15115]
[1768570232015,0.95561903,3310.2,3308.9,0.15115]
[1768570232216,0.95561903,3310.1,3308.9,0.15115]
[1768570232421,0.95561903,3310.0,3308.9,0.15115]
[1768570232619,0.70498112,3310.3,3308.9,0.15115]
[1768570232813,0.95570907,3310.2,3308.9,0.15115]
[1768570233013,0.95570907,3310.1,3308.9,0.15115]
[1768570233319,0.95570907,3310.0,3308.9,0.15115]
[1768570233618,0.70498112,3310.3,3308.9,0.15115]
[1768570233819,0.95582339,3310.2,3308.9,0.15115]
[1768570234113,0.95582339,3310.1,3308.9,0.15115]
[1768570234318,0.95582339,3310.0,3308.9,0.15115]
[1768570234513,0.70498112,3310.3,3308.9,0.15115]
[1768570234716,0.95596234,3310.2,3308.9,0.15115]
[1768570234920,0.95596234,3310.1,3308.9,0.15115]
[1768570235124,0.95596234,3310.0,3308.9,0.15115]
[1768570235317,0.70498112,3310.3,3308.9,0.15115]
[1768570235518,0.70133591,3310.1,3308.9,0.15115]
[1768570235720,0.70133591,3309.9,3308.9,4.86815]
[1768570236019,0.70133591,3309.9,3308.9,0.15115]
[1768570242227,0.70133591,3309.9,3308.3,0.15118]
[1768570242426,0.70133591,3309.7,3308.3,0.15118]
[1768570242628,0.70133591,3309.5,3308.3,0.15118]
[1768570242819,0.70133591,3309.3,3308.4,40.8]
[1768570243724,0.70133591,3309.3,3308.3,0.15118]
[1768570244125,0.70133591,3309.3,3308.3,40.95118]
[1768570246226,0.70133591,3309.3,3308.3,40.8]
[1768570251817,0.72397546,3310.1,3308.3,40.95118]
[1768570252123,0.9559744,3310.0,3308.9,0.15115]
[1768570252321,0.72397546,3310.3,3309.0,4.746]
[1768570252522,0.95619036,3310.2,3309.0,4.746]
[1768570252716,0.95619036,3310.1,3309.0,4.746]
[1768570252921,0.72397546,3310.3,3309.0,4.746]
[1768570253120,0.95618916,3310.2,3309.0,4.746]
[1768570253323,0.95618916,3310.1,3309.0,4.746]
[1768570253525,0.72397546,3311.1,3309.0,4.746]
[1768570253726,0.72397546,3310.9,3309.0,4.746]
[1768570253928,0.72397546,3310.7,3309.0,4.746]
[1768570254127,0.72397546,3310.5,3309.0,4.746]
[1768570254326,1.68024221,3310.4,3309.0,4.746]
[1768570254531,0.72397546,3310.4,3309.1,0.15114]
[1768570254728,0.72397546,3310.4,3309.2,40.8]
[1768570260434,0.72397546,3310.4,3309.1,0.15114]
[1768570260435,0.72397546,3310.2,3309.1,0.15114]
[1768570260833,0.72397546,3310.2,3308.5,0.15117]
[1768570261038,0.72397546,3310.2,3308.6,43.23]
[1768570261536,0.72397546,3310.0,3308.6,43.38117]
[1768570265144,0.72397546,3312.7,3308.6,51.273]
[1768570265326,0.72397546,3312.5,3310.4,0.15108]
[1768570265527,0.72397546,3312.5,3310.5,0.15108]
[1768570265732,0.72397546,3312.3,3310.6,3.171]
[1768570265934,0.72397546,3312.1,3310.7,1.151]
[1768570266232,0.72397546,3311.9,3310.7,0.00307454]
[1768570266433,0.72397546,3311.7,3310.7,40.8]
[1768570266639,0.72397546,3311.5,3307.7,3.025]
[1768570266841,0.72397546,3311.3,3307.9,3.025]
[1768570267139,1.6768663,3311.2,3309.1,0.66679821]
[1768570267432,0.72397546,3311.2,3309.3,0.66679821]
[1768570267639,0.72397546,3311.2,3309.7,40.8]
[1768570267936,0.72397546,3311.2,3309.8,0.765]
[1768570268543,0.15102,3311.8,3309.8,0.765]
[1768570268730,1.6766099,3311.7,3309.8,1.43179821]
[1768570269037,0.95263444,3311.6,3309.8,1.43179821]
[1768570269436,0.72397546,3311.5,3309.8,1.43179821]
[1768570269738,0.72397546,3311.3,3309.9,4.76]
[1768570269942,1.67649412,3311.2,3309.9,4.76]
[1768570270238,0.72397546,3311.2,3309.9,4.76]
[1768570270630,0.72397546,3311.2,3309.7,40.8]
[1768570270840,0.72397546,3311.2,3309.8,4.76]
[1768570273036,0.72397546,3311.7,3309.8,5.42679821]
[1768570273241,1.67059575,3311.6,3309.9,0.66679821]
[1768570273434,0.72397546,3311.4,3310.0,4.762]
[1768570273635,0.72397546,3311.2,3309.7,40.8]
[1768570273937,0.72397546,3311.0,3309.8,4.762]
[1768570274338,1.67063519,3310.9,3309.8,4.762]
[1768570274643,0.72397546,3310.9,3309.8,4.762]
[1768570275345,0.94681621,3310.8,3309.8,4.762]
[1768570275543,0.72397546,3310.9,3309.8,4.762]
[1768570275744,0.94681604,3310.8,3309.8,4.762]
[1768570275946,0.72397546,3310.9,3309.8,4.762]
[1768570276137,0.94681672,3310.8,3309.8,4.762]
[1768570276337,0.72397546,3310.9,3309.8,4.762]
[1768570276541,0.87499546,3311.8,3309.9,0.66679821]
[1768570277537,0.72397546,3311.8,3310.0,0.1511]
[1768570279840,0.72397546,3311.8,3310.1,40.8]
[1768570283155,0.72397546,3311.8,3310.1,43.822]
[1768570288554,0.94445263,3311.7,3310.1,43.822]
[1768570288754,0.94445263,3311.6,3310.1,43.822]
[1768570288959,0.72397546,3311.8,3310.1,43.822]
[1768570289157,0.94445365,3311.7,3310.1,43.822]
[1768570289352,0.94445365,3311.6,3310.1,43.822]
[1768570289554,0.72397546,3311.8,3310.1,43.822]
[1768570289753,0.94450054,3311.7,3310.1,43.822]
[1768570289957,0.94450054,3311.6,3310.1,43.822]
[1768570290159,0.72397546,3311.8,3310.1,43.822]
[1768570290456,0.94453538,3311.7,3310.1,43.822]
[1768570290649,0.94453538,3311.6,3310.1,43.822]
[1768570290846,0.72397546,3311.8,3310.1,43.822]
[1768570291054,0.84139019,3311.4,3309.4,3.022]
[1768570291255,0.84139019,3311.2,3309.5,2.442]
[1768570291456,0.84139019,3311.0,3309.6,40.8]
[1768570292154,0.94490225,3310.9,3309.6,40.8]
[1768570292362,0.84139019,3311.0,3309.6,40.8]
[1768570292559,0.94490225,3310.9,3309.6,40.8]
[1768570292761,0.84139019,3311.0,3309.6,40.8]
[1768570293055,0.9449021,3310.9,3309.6,40.8]
[1768570293362,0.94523113,3310.8,3309.7,4.778]
[1768570293565,0.84139019,3310.8,3309.7,4.778]
[1768570295058,0.94554765,3310.7,3308.6,0.99600822]
[1768570295271,0.84139019,3310.5,3309.2,1.868]
[1768570295464,0.94554765,3310.4,3309.3,3.32]
[1768570295659,0.84139019,3310.5,3309.3,3.32]
[1768570295660,0.94554765,3310.3,3309.3,3.32]
[1768570295856,0.94554765,3310.2,3309.3,3.32]
[1768570296059,0.84139019,3310.5,3309.3,3.32]
[1768570296260,0.94541497,3310.4,3309.3,3.32]
[1768570296460,0.94541497,3310.3,3309.3,3.32]
[1768570296765,0.94541497,3310.2,3309.3,3.32]
[1768570296961,0.84139019,3310.5,3309.3,3.32]
[1768570297164,0.94529226,3310.4,3309.3,3.32]
[1768570297366,0.94529226,3310.3,3309.3,3.32]
[1768570297670,0.84139019,3310.5,3309.3,3.32]
[1768570297870,0.9450179,3310.4,3308.6,0.99600822]
[1768570298073,1.78640809,3310.3,3309.2,1.356]
[1768570298272,0.84139019,3310.3,3309.2,1.356]
[1768570303264,0.84139019,3310.3,3309.3,4.786]
[1768570305270,0.84139019,3310.3,3309.2,4.787]
[1768570308778,0.84139019,3310.3,3308.7,40.8]
[1768570308977,0.84139019,3310.1,3308.7,40.8]
[1768570309176,0.84139019,3310.1,3308.1,0.84483822]
[1768570309177,0.84139019,3309.9,3308.8,4.789]
[1768570309378,0.94304073,3309.8,3308.8,4.789]
[1768570309579,0.94304073,3309.7,3308.6,4.151]
[1768570309877,0.84139019,3309.9,3308.6,4.151]
[1768570310070,0.94263228,3309.8,3308.6,0.00329116]
[1768570310275,0.94263228,3309.7,3308.6,0.00329116]
[1768570310575,0.00284302,3309.9,3308.6,0.00329116]
[1768570310778,0.94242492,3309.8,3308.6,0.00329116]
[1768570310972,0.00284302,3309.9,3308.6,0.84812938]
[1768570318287,0.94348715,3309.8,3308.6,0.84812938]
[1768570318495,0.00284302,3309.9,3308.7,4.791]
[1768570318685,0.00284302,3309.9,3308.6,0.84812938]
[1768570318686,0.94352202,3309.8,3308.6,0.84812938]
[1768570318885,0.00284302,3309.9,3308.7,4.792]
[1768570319086,0.94352107,3309.8,3308.7,4.792]
[1768570319389,0.00284302,3309.9,3308.7,4.792]
[1768570319588,0.944027,3309.8,3308.7,4.792]
[1768570319791,0.00284302,3309.9,3308.7,4.792]
[1768570319993,0.94402718,3309.8,3308.7,4.792]
[1768570320182,0.94458066,3309.7,3308.7,4.792]
[1768570320382,0.00284302,3309.9,3308.7,4.792]
[1768570320591,0.94461017,3309.8,3308.7,4.792]
[1768570320791,0.94461017,3309.7,3308.7,4.792]
[1768570320982,0.00284302,3309.9,3308.7,4.792]
[1768570321183,0.94461124,3309.8,3308.7,4.792]
[1768570321385,0.94461124,3309.7,3308.7,4.792]
[1768570321584,0.00284302,3309.9,3308.6,0.00329116]
[1768570321795,0.94483148,3309.8,3308.6,0.00329116]
[1768570321991,0.94483148,3309.7,3308.6,0.00329116]
[1768570322190,0.94483148,3309.6,3308.6,0.00329116]
[1768570322394,0.00284302,3309.9,3308.6,0.00329116]
[1768570322695,0.93079611,3309.7,3308.6,0.00329116]
[1768570322888,0.93079611,3309.5,3307.9,1.07491311]
[1768570323082,1.8758615,3309.4,3308.0,1.604]
[1768570323284,0.94506539,3309.3,3307.9,3.82191311]
[1768570323588,0.94506539,3309.2,3307.9,3.82191311]
[1768570323789,0.94506539,3309.1,3307.9,3.82191311]
[1768570323989,0.93079611,3309.4,3307.9,3.82527802]
[1768570324293,0.94495266,3309.3,3307.9,3.82527802]
[1768570324486,0.94495266,3309.2,3307.9,2.90156491]
[1768570324688,0.94495266,3309.1,3307.9,2.90156491]
[1768570324995,0.93079611,3309.3,3307.9,2.90156491]
[1768570325188,0.94503616,3309.2,3307.9,2.90156491]
[1768570325391,0.94503616,3309.1,3307.9,2.90156491]
[1768570325592,0.93079611,3309.3,3307.9,2.90156491]
[1768570325793,0.94496966,3309.2,3307.9,0.00336491]
[1768570325992,0.15113,3309.5,3307.9,0.00336491]
[1768570325993,1.87576577,3309.1,3307.9,0.00336491]
[1768570326193,0.94496966,3309.0,3307.9,0.00336491]
[1768570326497,0.94496966,3308.9,3307.9,0.00336491]
[1768570326694,0.94496966,3308.8,3307.9,0.00336491]
[1768570326896,0.94496966,3308.7,3307.9,0.00336491]
[1768570327095,0.93079611,3309.1,3307.9,0.00336491]
[1768570327398,0.94427338,3309.0,3307.9,0.00336491]
[1768570327599,0.94427338,3308.9,3307.9,0.00336491]
[1768570327802,0.93079611,3308.7,3307.9,0.00336491]
[1768570328098,0.93079611,3308.7,3307.2,0.15123]
[1768570328700,0.93079611,3308.7,3307.3,40.8]
[1768570328906,0.93079611,3308.7,3307.3,40.80342058]
[1768570330193,1.87426483,3308.6,3307.3,0.00342058]
[1768570330494,1.87426483,3308.5,3307.3,0.00342058]
[1768570330694,0.94346872,3308.4,3307.3,0.00342058]
[1768570330895,0.94346872,3308.3,3307.3,0.00342058]
[1768570331090,0.93079611,3308.3,3307.3,0.00342058]
[1768570332100,0.94317164,3308.2,3307.3,0.00342058]
[1768570332297,0.93079611,3308.3,3306.8,40.8]
[1768570332600,0.93079611,3308.0,3306.3,0.92371311]
[1768570332799,1.87356717,3307.9,3306.3,0.92371311]
[1768570333094,0.94277106,3307.8,3306.4,40.8]
[1768570333300,0.93079611,3307.9,3306.4,40.8]
[1768570333496,0.94204913,3307.8,3306.4,40.80231731]
[1768570333801,0.93079611,3307.9,3306.4,40.80231731]
[1768570334001,0.94205226,3307.8,3306.4,40.80231731]
[1768570334202,0.93079611,3307.9,3306.4,40.80231731]
[1768570334406,0.94161965,3307.8,3306.4,40.80231731]
[1768570334705,0.93079611,3307.9,3306.4,40.80231731]
[1768570335003,0.94164621,3307.8,3306.4,40.80231731]
[1768570335304,0.93079611,3307.9,3306.4,40.80231731]
[1768570336901,0.94122391,3307.8,3306.4,40.80231731]
[1768570337102,1.87194494,3307.7,3306.4,40.80231731]
[1768570337299,0.93079611,3307.7,3306.4,40.80231731]
[1768570337897,0.93079611,3307.5,3306.4,0.00231731]
[1768570338092,0.93079611,3307.3,3306.4,0.00231731]
[1768570338309,0.93079611,3307.3,3305.8,40.8]
[1768570339201,0.93079611,3307.3,3305.8,40.8026]
[1768570339606,0.00332468,3307.5,3305.9,0.92371311]
[1768570340603,0.00332468,3307.5,3306.2,0.92371311]
[1768570345814,1.92036354,3307.4,3305.8,40.8026]
[1768570346010,0.980616,3307.4,3305.8,40.8026]
[1768570347410,1.92050441,3307.3,3305.8,0.0026]
[1768570347613,0.980616,3307.3,3305.8,0.0026]
[1768570349414,0.94026014,3307.2,3305.8,0.0026]
[1768570349710,0.980616,3307.3,3305.8,0.0026]
[1768570350314,0.9405741,3307.2,3305.8,0.0026]
[1768570350512,0.980616,3307.3,3305.8,0.0026]
[1768570350712,0.94057339,3307.2,3305.8,0.0026]
[1768570351012,0.980616,3307.3,3305.8,0.0026]
[1768570351212,0.94057623,3307.2,3305.8,0.0026]
[1768570351424,0.980616,3307.3,3305.8,0.0026]
[1768570351609,1.10186459,3307.1,3305.8,0.0026]
[1768570351810,2.04279306,3307.0,3305.8,0.0026]
[1768570352117,0.94134796,3306.9,3305.8,0.0026]
[1768570352309,1.10186459,3307.0,3305.8,0.0026]
[1768570352505,0.00332468,3307.5,3306.0,1.07145146]
[1768570353110,0.9419138,3307.4,3306.0,1.07145146]
[1768570353416,0.00332468,3307.5,3306.0,1.07145146]
[1768570353606,0.00332468,3307.5,3306.1,0.15128]
[1768570354116,0.94210521,3307.4,3306.1,0.15128]
[1768570354415,0.00332468,3307.5,3306.1,0.15128]
[1768570354614,0.94256334,3307.4,3306.1,0.15128]
[1768570354815,0.00332468,3307.5,3306.1,0.15128]
[1768570355022,0.94256427,3307.4,3306.1,0.15128]
[1768570355207,2.04497132,3307.3,3305.8,0.0026]
[1768570355410,0.94310673,3307.2,3305.8,0.0026]
[1768570355708,1.10186459,3307.3,3305.8,0.0026]
[1768570355906,0.94308578,3307.2,3305.8,0.0026]
[1768570356107,1.10186459,3307.3,3305.8,0.0026]
[1768570356307,0.94348273,3307.2,3305.8,1.07405146]
[1768570356607,0.00332468,3307.5,3306.1,1.07145146]
[1768570356807,0.94348944,3307.4,3306.1,1.07145146]
[1768570357013,0.94348944,3307.3,3306.1,1.07145146]
[1768570357203,0.94393826,3307.2,3306.1,1.07145146]
[1768570357403,0.00332468,3307.5,3306.1,1.07145146]
[1768570357619,0.94394202,3307.4,3306.1,1.07145146]
[1768570357819,0.94394202,3307.3,3306.1,1.07145146]
[1768570358014,0.94394202,3307.2,3306.1,1.07145146]
[1768570358211,0.00332468,3307.5,3306.1,1.07145146]
[1768570358520,0.94439047,3307.4,3306.1,1.07145146]
[1768570358817,0.94439047,3307.3,3306.1,1.07145146]
[1768570359020,0.94439047,3307.2,3306.1,1.07145146]
[1768570359213,0.94494603,3307.1,3306.1,1.07145146]
[1768570359407,0.00332468,3307.5,3306.1,1.07145146]
[1768570359606,0.94495176,3307.4,3306.1,1.07145146]
[1768570359806,0.00332468,3307.5,3306.1,1.07145146]
[1768570360420,0.00332468,3307.5,3306.2,43.524]
[1768570360620,0.00332468,3307.5,3306.5,0.15126]
[1768570367715,1.25305459,3308.3,3306.5,0.15126]
[1768570368721,1.10498718,3308.3,3306.6,0.15126]
[1768570371732,0.94112383,3308.2,3306.6,0.15126]
[1768570371922,0.94112383,3308.1,3306.6,0.15126]
[1768570372123,0.94112383,3308.0,3306.6,0.15126]
[1768570372329,0.94112383,3307.9,3306.6,0.15126]
[1768570372528,0.94112383,3307.8,3306.6,0.15126]
[1768570372719,0.94112383,3307.7,3306.6,0.15126]
[1768570372923,0.94112383,3307.6,3306.6,0.15126]
[1768570373119,0.00312259,3308.3,3306.6,0.15126]
[1768570373326,0.9410789,3308.2,3307.2,0.15123]
[1768570373526,0.00312259,3308.3,3307.2,0.15123]
[1768570373825,0.00312259,3308.3,3307.2,40.95123]
[1768570375135,0.00312259,3308.3,3307.4,0.15122]
[1768570375335,6.49,3308.7,3307.4,0.15122]
[1768570375336,1.16013826,3308.9,3307.4,0.15122]
[1768570375537,0.94066682,3308.8,3307.4,0.15122]
[1768570375735,0.94066682,3308.7,3307.4,0.15122]
[1768570375931,0.94066682,3308.6,3307.4,0.15122]
[1768570376138,2.10080508,3308.5,3307.4,0.15122]
[1768570376337,1.16244757,3308.5,3307.4,0.15122]
[1768570379139,1.16244757,3308.5,3307.5,40.8]
[1768570382240,1.16013826,3308.3,3306.8,0.15125]
[1768570382445,0.00230931,3308.5,3306.8,0.15125]
[1768570382446,1.16013826,3308.1,3306.8,0.15125]
[1768570382641,1.16013826,3308.1,3306.8,40.95125]
[1768570382939,1.16244757,3308.5,3306.9,0.15125]
[1768570383134,0.9403175,3308.4,3306.9,0.15125]
[1768570383340,0.9403175,3308.3,3306.9,0.15125]
[1768570383539,1.16244757,3308.5,3306.9,0.15125]
[1768570383739,0.9403605,3308.4,3306.9,0.15125]
[1768570383939,0.9403605,3308.3,3306.9,0.15125]
[1768570384141,1.16244757,3308.5,3306.9,0.15125]
[1768570384333,0.94043382,3308.4,3306.9,0.15125]
[1768570384536,0.94043382,3308.3,3306.9,0.15125]
[1768570384841,1.16244757,3308.5,3306.9,0.15125]
[1768570385043,0.94043502,3308.4,3306.9,0.15125]
[1768570385243,0.94043502,3308.3,3306.9,0.15125]
[1768570385442,1.16244757,3308.5,3306.9,0.15125]
[1768570385743,0.94053246,3308.4,3307.0,0.15124]
[1768570386043,1.16244757,3308.5,3307.0,0.15124]
[1768570386344,0.94070688,3308.4,3307.0,0.15124]
[1768570386545,1.16244757,3308.5,3307.0,0.15124]
[1768570386748,0.94072916,3308.4,3307.0,0.15124]
[1768570387045,1.16244757,3308.5,3307.0,0.15124]
[1768570387343,0.94086476,3308.4,3307.0,0.15124]
[1768570387542,1.16244757,3308.5,3307.0,0.15124]
[1768570387843,0.94086464,3308.4,3307.0,0.15124]
[1768570388045,1.16244757,3308.5,3307.0,0.15124]
[1768570388240,0.94104482,3308.4,3307.0,0.15124]
[1768570388440,1.16244757,3308.5,3307.0,0.15124]
[1768570388643,0.94104316,3308.4,3307.1,0.15124]
[1768570388953,0.00230931,3308.5,3307.3,0.15123]
[1768570389144,0.00230931,3308.5,3307.3,4.96823]
[1768570391948,1.16244757,3308.5,3307.3,0.15123]
[1768570392845,1.16013826,3308.3,3307.0,4.978]
[1768570393144,2.10197041,3308.2,3307.0,4.978]
[1768570393345,1.16013826,3308.2,3307.0,4.978]
[1768570394245,1.16013826,3308.2,3307.0,0.16]
[1768570397248,0.9423256,3308.1,3307.0,0.16]
[1768570397445,1.16013826,3308.2,3307.0,0.16]
[1768570397648,0.94232478,3308.1,3306.8,45.619]
[1768570397842,1.16013826,3308.2,3306.8,45.619]
[1768570398036,2.10246026,3308.1,3306.8,45.619]
[1768570398242,1.16013826,3308.1,3306.8,45.619]
[1768570399251,0.94257797,3308.0,3306.8,45.619]
[1768570399545,1.16013826,3308.1,3306.8,45.619]
[1768570399750,0.9425787,3308.0,3306.8,45.619]
[1768570399952,1.16013826,3308.1,3306.8,45.619]
[1768570400142,0.94257642,3308.0,3306.8,45.619]
[1768570400342,1.16013826,3308.1,3306.8,45.619]
[1768570400543,0.94271329,3308.0,3306.8,45.619]
[1768570400747,1.16013826,3308.1,3306.8,45.619]
[1768570400952,0.94271344,3308.0,3306.8,45.619]
[1768570401149,1.16013826,3308.1,3306.8,4.819]
[1768570401342,0.94290354,3308.0,3306.8,4.819]
[1768570401542,1.16013826,3308.1,3306.8,4.819]
[1768570401745,0.94290338,3308.0,3306.8,4.819]
[1768570401943,1.16013826,3308.1,3306.8,4.819]
[1768570402143,0.94290561,3308.0,3306.8,4.819]
[1768570402345,1.26462948,3308.0,3306.8,4.819]
[1768570403754,1.26462948,3308.0,3306.7,0.15125]
[1768570403961,1.26462948,3308.0,3306.8,4.827]
[1768570404158,0.94333741,3307.9,3306.8,4.827]
[1768570404460,1.26462948,3307.7,3306.5,0.16]
[1768570404954,0.94316664,3307.6,3306.3,45.627]
[1768570405154,1.26462948,3307.7,3306.3,45.627]
[1768570405352,0.94289877,3307.6,3306.3,45.627]
[1768570405543,1.26462948,3307.7,3306.3,45.627]
[1768570405749,0.94282911,3307.6,3306.3,45.627]
[1768570405942,1.26462948,3307.7,3306.3,45.627]
[1768570407758,1.26462948,3307.7,3306.3,45.77827]
[1768570409261,1.26462948,3307.7,3306.3,45.93827]
[1768570412262,1.26462948,3307.7,3306.3,41.11127]
[1768570412562,1.26462948,3307.7,3306.4,4.84]
[1768570413264,0.94230544,3307.6,3306.3,40.8]
[1768570413563,1.19872512,3307.4,3305.9,4.842]
[1768570413763,1.19872512,3307.2,3305.9,4.842]
[1768570413966,1.19872512,3307.2,3306.0,40.8]
[1768570414863,0.94178372,3307.1,3306.0,40.8]
[1768570415065,1.19872512,3307.0,3306.0,40.8]
[1768570415460,1.19872512,3307.0,3305.8,0.1539]
[1768570415661,1.19872512,3307.0,3305.8,4.9979]
[1768570415863,1.19872512,3307.0,3305.9,40.8]
[1768570417460,1.19872512,3307.0,3305.8,0.1539]
[1768570417461,1.19872512,3307.0,3305.8,0.0026]
[1768570417659,1.19872512,3306.8,3305.8,1e-08]
[1768570417861,1.19872512,3306.6,3305.8,1e-08]
[1768570418371,1.19872512,3307.0,3305.8,1e-08]
[1768570418571,0.93967443,3306.9,3305.8,1e-08]
[1768570418867,0.93967443,3306.8,3305.8,1e-08]
[1768570419073,1.19872512,3307.0,3305.8,1e-08]
[1768570419368,0.93932239,3306.9,3305.8,1e-08]
[1768570419569,0.93932239,3306.8,3305.8,1e-08]
[1768570419764,1.19872512,3307.0,3305.8,1e-08]
[1768570419964,0.93929946,3306.9,3305.8,1e-08]
[1768570420167,1.19872512,3307.0,3305.8,1e-08]
[1768570420168,0.93929946,3306.8,3305.8,1e-08]
[1768570420371,1.19872512,3307.0,3305.8,1e-08]
[1768570420674,0.93904257,3306.9,3305.8,1e-08]
[1768570420862,0.93904257,3306.8,3305.8,1e-08]
[1768570421062,1.19872512,3307.0,3305.8,1e-08]
[1768570421369,0.94049554,3306.9,3305.8,1e-08]
[1768570421570,0.94049554,3306.8,3305.8,1e-08]
[1768570421769,1.19872512,3307.0,3305.8,1e-08]
[1768570421975,0.94049537,3306.9,3305.8,1e-08]
[1768570422172,0.94049537,3306.8,3305.8,1e-08]
[1768570422372,1.19872512,3307.0,3305.8,1e-08]
[1768570422675,2.13908708,3306.9,3305.8,1e-08]
[1768570422973,0.94036196,3306.8,3305.8,1e-08]
[1768570423173,1.19872512,3306.9,3305.8,1e-08]
[1768570430174,1.34992512,3307.9,3305.8,1e-08]
[1768570430380,1.19872512,3307.7,3305.8,1e-08]
[1768570430580,1.19872512,3307.5,3305.9,40.8]
[1768570430771,1.19872512,3307.3,3305.9,40.8]
[1768570430969,2.13920674,3307.2,3305.9,40.8]
[1768570431170,1.19872512,3307.1,3305.9,40.8]
[1768570432275,1.32070379,3306.9,3305.8,1e-08]
[1768570432776,1.32070379,3306.7,3305.8,1e-08]
[1768570439183,1.32070379,3306.5,3305.8,1e-08]
[1768570440581,1.32070379,3306.5,3305.1,0.31133]
[1768570440782,1.32070379,3306.5,3305.1,0.15133]
[1768570440986,1.32070379,3306.5,3305.2,40.8]
[1768570441279,1.32070379,3306.3,3305.2,40.8]
[1768570441479,1.32070379,3306.3,3305.2,40.80353679]
[1768570441680,1.32070379,3306.1,3305.2,0.00353679]
[1768570441880,1.32292315,3306.1,3304.6,0.16]
[1768570442194,1.32070379,3305.9,3304.6,0.16]
[1768570442493,1.32070379,3305.9,3304.1,1.27062258]
[1768570442796,1.32070379,3305.7,3304.2,40.8]
[1768570442989,0.00221936,3306.1,3304.2,40.80321482]
[1768570442990,1.32070379,3305.5,3304.2,40.80321482]
[1768570443196,1.32070379,3305.3,3304.2,0.00321482]
[1768570443496,1.32070379,3305.1,3303.2,0.15141]
[1768570443684,1.32070379,3304.9,3303.4,40.8]
[1768570443888,1.32070379,3305.4,3303.4,42.23298073]
[1768570444088,1.32070379,3305.2,3303.5,0.1514]
[1768570444287,0.94240967,3305.1,3303.5,1.28531138]
[1768570444486,1.32070379,3305.5,3303.5,1.28864454]
[1768570444686,0.94173935,3305.4,3303.5,1.28864454]
[1768570444995,1.32070379,3305.2,3303.7,0.15139]
[1768570445293,1.32070379,3305.0,3303.7,0.15139]
[1768570456005,1.32070379,3305.0,3303.5,0.00333316]
[1768570457108,1.32070379,3305.0,3303.5,0.15473316]
[1768570457805,1.32070379,3305.0,3303.6,0.1514]
[1768570460103,1.32070379,3305.0,3303.5,0.00333316]
[1768570460501,1.32070379,3305.0,3303.6,40.8]
[1768570463094,1.40054731,3304.8,3303.6,40.8]
[1768570467411,1.40054731,3304.8,3303.6,40.9514]
[1768570469117,0.94428987,3304.7,3303.6,40.9514]
[1768570469312,1.40054731,3304.8,3303.6,40.9514]
[1768570469617,0.94433601,3304.7,3303.6,40.9514]
[1768570469915,1.40054731,3304.8,3303.6,40.9514]
[1768570470210,0.94433617,3304.7,3303.7,0.15139]
[1768570470413,1.41889683,3305.2,3303.7,0.15139]
[1768570470617,0.94517281,3305.1,3303.7,0.15139]
[1768570470817,0.94517281,3305.0,3303.8,40.8]
[1768570471008,0.94517281,3304.9,3303.8,40.8]
[1768570471318,0.94517281,3304.8,3303.8,40.8]
[1768570471525,0.94517281,3304.7,3303.8,40.8]
[1768570471816,1.41889683,3305.1,3303.8,40.8]
[1768570472017,0.94620235,3305.0,3303.8,40.8]
[1768570472317,0.94620235,3304.9,3303.8,40.8]
[1768570472518,0.94620235,3304.8,3303.8,40.8]
[1768570472717,2.36509918,3304.7,3303.5,0.00333316]
[1768570472921,2.36509918,3304.6,3303.5,0.00333316]
[1768570473119,0.94620235,3304.5,3303.5,0.00333316]
[1768570474620,0.94620235,3304.4,3303.5,0.00333316]
[1768570474823,1.41889683,3305.0,3303.5,0.00333316]
[1768570475022,2.36597847,3304.9,3303.5,0.00333316]
[1768570475222,0.94708164,3304.8,3303.5,0.00333316]
[1768570476424,2.36597847,3304.8,3303.5,0.00333316]
[1768570476616,0.94708164,3304.7,3303.5,0.00333316]
[1768570478025,0.94708164,3304.7,3303.6,0.1514]
[1768570478217,2.71074499,3305.5,3303.6,0.1514]
[1768570478218,1.41889683,3305.0,3303.6,0.1514]
[1768570478522,0.94740858,3304.9,3303.6,0.1514]
[1768570478724,0.94740858,3304.8,3303.7,40.8]
[1768570478923,0.94740858,3304.7,3303.7,40.8]
[1768570479111,1.41889683,3304.8,3303.7,40.8]
[1768570479311,3.85931948,3305.5,3303.7,40.8]
[1768570479312,0.94749966,3304.7,3303.7,40.8]
[1768570479515,1.41889683,3304.9,3303.7,40.8]
[1768570479716,0.94753009,3304.8,3303.7,40.8]
[1768570479930,0.94753009,3304.7,3303.7,40.8]
[1768570480126,1.41889683,3304.9,3303.7,40.8]
[1768570480423,0.94753739,3304.8,3303.7,40.95139]
[1768570480621,0.94753739,3304.7,3303.8,0.15139]
[1768570480814,1.41889683,3305.4,3303.8,0.15139]
[1768570481123,1.41889683,3305.8,3304.4,0.15136]
[1768570481424,0.94790113,3305.7,3304.5,0.15135]
[1768570481620,0.00221936,3306.1,3304.5,0.15135]
[1768570481820,0.94796936,3306.0,3304.6,0.15135]